Department,Entity,Posted Date,Internal Voucher Number, Invoice Line Amount GBP ,Supplier Name,Account Code
FCO,FCO,19/08/2020,10868035,"41,674,097.08",UNITED NATIONS,Programme Spend (Oracle Projects Control Account)
FCO,FCO,26/08/2020,10874774,"38,511,050.53",UNITED NATIONS,Programme Spend (Oracle Projects Control Account)
FCO,FCO,14/08/2020,10862029,"26,320,357.33",UNITED NATIONS,Programme Spend (Oracle Projects Control Account)
FCO,FCO,14/08/2020,10862078,"15,775,354.65",UNITED NATIONS,Programme Spend (Oracle Projects Control Account)
FCO,FCO,14/08/2020,10862067,"14,010,229.28",UNITED NATIONS,Programme Spend (Oracle Projects Control Account)
FCO,FCO,14/08/2020,10862581,"10,080,852.70",UNITED NATIONS,Programme Spend (Oracle Projects Control Account)
FCO,FCO,11/08/2020,10858067,"7,974,718.26",HMRC HM REVENUE AND CUSTOMS,Multiple Accounts
FCO,FCO,11/08/2020,10858045,"7,650,025.00",CABINET OFFICE,Multiple Accounts
FCO,FCO,04/08/2020,10849600,"6,468,290.42",ORGANIZATION FOR SECURITY AND CO-OPERATION IN EUROPE,Programme Spend (Oracle Projects Control Account)
FCO,FCO,21/08/2020,10870543,"6,247,606.00",BBC BRITISH BROADCASTING CORPORATION,Programme Spend (Oracle Projects Control Account)
FCO,FCO,14/08/2020,10862096,"4,301,387.93",UNITED NATIONS,Programme Spend (Oracle Projects Control Account)
FCO,FCO,05/08/2020,10850561,"3,300,000.00",THE ASSOCIATION OF COMMONWEALTH UNIVERSITIES,Programme Spend (Oracle Projects Control Account)
FCO,FCO,14/08/2020,10862090,"3,252,630.93",UNITED NATIONS,Programme Spend (Oracle Projects Control Account)
FCO,FCO,13/08/2020,10860736,"2,737,094.44",FCO POSTS,Funding Overseas Posts
FCO,FCO,11/08/2020,10858069,"2,610,000.00",ISS FACILITY SERVICES LTD FCO OP - POE,FMCU POE Trust Account Debtor
FCO,FCO,24/08/2020,10872054,"2,376,828.21",GOVERNORS OFFICE CAPITAL FUNDS,Programme Spend (Oracle Projects Control Account)
FCO,FCO,13/08/2020,10860735,"2,084,487.60",FCO POSTS,Funding Overseas Posts
FCO,FCO,13/08/2020,10860583,"2,000,000.00",UNITED NATIONS,Programme Spend (Oracle Projects Control Account)
FCO,FCO,11/08/2020,10857850,"1,893,226.42",GW CONSULTING UK LTD,UK Guarding Contracts Overseas
FCO,FCO,03/08/2020,10848115,"1,748,332.18",FCO POSTS,Funding Overseas Posts
FCO,FCO,03/08/2020,10848169,"1,710,926.47",FCO POSTS,Funding Overseas Posts
FCO,FCO,01/08/2020,10875258,"1,666,716.77",THE ROYAL BANK OF SCOTLAND,GPC Clearing Account
FCO,FCO,03/08/2020,10848095,"1,512,436.93",FCO POSTS,Funding Overseas Posts
FCO,FCO,04/08/2020,10849222,"1,457,981.61",PRICEWATERHOUSECOOPERS LLP,Programme Spend (Oracle Projects Control Account)
FCO,FCO,13/08/2020,10860682,"1,454,643.05",FCO POSTS,Funding Overseas Posts
FCO,FCO,14/08/2020,10862073,"1,354,786.44",UNITED NATIONS,Programme Spend (Oracle Projects Control Account)
FCO,FCO,03/08/2020,10848194,"1,341,763.68",FCO POSTS,Funding Overseas Posts
FCO,FCO,14/08/2020,10862589,"1,266,455.03",UNITED NATIONS,Programme Spend (Oracle Projects Control Account)
FCO,FCO,13/08/2020,10860921,"1,228,226.09",GRUNLEY CONSTRUCTION CO INC,Additions-Assets Under Construction (Oracle PA Control Account)
FCO,FCO,17/08/2020,10865472,"1,210,747.39",ISS FACILITY SERVICES LTD FCO OP - POE,Multiple Accounts
FCO,FCO,03/08/2020,10848353,"1,204,481.49",FCO POSTS,Funding Overseas Posts
FCO,FCO,04/08/2020,10849296,"1,103,802.96",MOTT MACDONALD LTD,Programme Spend (Oracle Projects Control Account)
FCO,FCO,04/08/2020,10849310,"1,007,204.52",GW CONSULTING UK LTD,UK Mobile Guarding Contract overseas
FCO,FCO,18/08/2020,10866397,"1,000,000.00",THE WORLD BANK,Programme Spend (Oracle Projects Control Account)
FCO,FCO,03/08/2020,10848097,"874,386.17",FCO POSTS,Funding Overseas Posts
FCO,FCO,03/08/2020,10848167,"871,942.52",FCO POSTS,Funding Overseas Posts
FCO,FCO,01/08/2020,10870630,"857,432.87",THE ROYAL BANK OF SCOTLAND,Travel Package Advance Overseas Posting (Credit Card Payments Only)
FCO,FCO,03/08/2020,10848172,"830,081.32",FCO POSTS,Funding Overseas Posts
FCO,FCO,14/08/2020,10862044,"822,367.15",UNITED NATIONS,Programme Spend (Oracle Projects Control Account)
FCO,FCO,24/08/2020,10872259,"822,273.23",DAI GLOBAL UK LTD,Programme Spend (Oracle Projects Control Account)
FCO,FCO,21/08/2020,10869735,"799,593.00",WESTMINSTER FOUNDATION FOR DEMOCRACY,Programme Spend (Oracle Projects Control Account)
FCO,FCO,25/08/2020,10873509,"782,090.43",FCO SERVICES,Residential Property Services
FCO,FCO,03/08/2020,10848209,"768,041.21",FCO POSTS,Funding Overseas Posts
FCO,FCO,26/08/2020,10874673,"741,457.09",COMPUTACENTER UK LTD,IT Management and Change
FCO,FCO,03/08/2020,10848174,"690,329.87",FCO POSTS,Funding Overseas Posts
FCO,FCO,18/08/2020,10866707,"677,524.00",UNITED NATIONS,Programme Spend (Oracle Projects Control Account)
FCO,FCO,14/08/2020,10862587,"629,820.57",UNITED NATIONS,Programme Spend (Oracle Projects Control Account)
FCO,FCO,17/08/2020,10865209,"619,859.78",GROH UND RANDEL STEUERBERATER,Multiple Accounts
FCO,FCO,05/08/2020,10850821,"605,726.96",BURNHAM GLOBAL LTD,Programme Spend (Oracle Projects Control Account)
FCO,FCO,04/08/2020,10849262,"593,494.47",ARTEOS GP LIMITED AND CO KG,Multiple Accounts
FCO,FCO,06/08/2020,10852209,"585,979.63",GILBERT ASH LIMITED,Unscheduled repairs to building infrastructure
FCO,FCO,18/08/2020,10867310,"561,273.68",SHELL NIG CLOSED PENSION FUND ADMIN,Multiple Accounts
FCO,FCO,24/08/2020,10872645,"550,000.00",UNDP MULTIPARTNER TRUST FUND,Programme Spend (Oracle Projects Control Account)
FCO,FCO,28/08/2020,10876904,"543,680.11",ERNST AND YOUNG LLP,Programme Spend (Oracle Projects Control Account)
FCO,FCO,27/08/2020,10876113,"509,707.00",DAI GLOBAL UK LTD,Programme Spend (Oracle Projects Control Account)
FCO,FCO,24/08/2020,10871979,"502,976.70",DIPLOMATIC SERVICE BUREAU,Multiple Accounts
FCO,FCO,03/08/2020,10848249,"493,000.00",FCO POSTS,Funding Overseas Posts
FCO,FCO,26/08/2020,10874653,"474,787.68",ISS FACILITY SERVICES LTD FCO OP - POE,Rental Payments - non residential
FCO,FCO,03/08/2020,10848187,"472,581.73",FCO POSTS,Funding Overseas Posts
FCO,FCO,28/08/2020,10876946,"461,955.05",FCO SERVICES,Construction Project more than 10k
FCO,FCO,06/08/2020,10852190,"450,980.76",PRICEWATERHOUSECOOPERS LLP,Programme Spend (Oracle Projects Control Account)
FCO,FCO,28/08/2020,10877023,"446,348.00",WESTMINSTER CITY COUNCIL,Rates Taxes Non-Residential
FCO,FCO,01/08/2020,10870535,"444,584.03",THE ROYAL BANK OF SCOTLAND,Corporate Credit Card Clearing Account
FCO,FCO,03/08/2020,10848142,"443,158.18",FCO POSTS,Funding Overseas Posts
FCO,FCO,03/08/2020,10848185,"439,083.29",FCO POSTS,Funding Overseas Posts
FCO,FCO,03/08/2020,10848178,"436,713.78",FCO POSTS,Funding Overseas Posts
FCO,FCO,19/08/2020,10867753,"424,954.00",ADBLU INTERNATIONAL LIMITED,Additions-Assets Under Construction (Oracle PA Control Account)
FCO,FCO,17/08/2020,10865091,"422,613.60",ZINC NETWORK LIMITED,Programme Spend (Oracle Projects Control Account)
FCO,FCO,21/08/2020,10870103,"417,255.34",INTERSERVE FM LTD,Multiple Accounts
FCO,FCO,03/08/2020,10848139,"414,678.48",FCO POSTS,Funding Overseas Posts
FCO,FCO,06/08/2020,10852554,"409,161.00",SAFELANE GLOBAL LIMITED,Programme Spend (Oracle Projects Control Account)
FCO,FCO,11/08/2020,10858153,"403,412.36",PRICEWATERHOUSECOOPERS LLP,Programme Spend (Oracle Projects Control Account)
FCO,FCO,21/08/2020,10869840,"400,000.00",UNESCO,Programme Spend (Oracle Projects Control Account)
FCO,FCO,14/08/2020,10862004,"399,413.28",OKNYGAARD AS,Construction Project more than 10k
FCO,FCO,03/08/2020,10848113,"397,668.89",FCO POSTS,Funding Overseas Posts
FCO,FCO,24/08/2020,10872228,"388,742.00",IOM INTERNATIONAL ORG FOR MIGRATION,Programme Spend (Oracle Projects Control Account)
FCO,FCO,25/08/2020,10873800,"388,433.33",AECOM,Additions-Assets Under Construction (Oracle PA Control Account)
FCO,FCO,18/08/2020,10866743,"385,702.56",GILBERT ASH LIMITED,Unscheduled repairs to building infrastructure
FCO,FCO,03/08/2020,10848106,"379,572.12",FCO POSTS,Funding Overseas Posts
FCO,FCO,04/08/2020,10849228,"378,761.36",ERNST AND YOUNG LLP,Programme Spend (Oracle Projects Control Account)
FCO,FCO,04/08/2020,10849286,"373,690.22",INCOSTRAT,Programme Spend (Oracle Projects Control Account)
FCO,FCO,27/08/2020,10876306,"372,280.00",URSSAF,Multiple Accounts
FCO,FCO,06/08/2020,10852192,"358,030.00",UNITED NATIONS,Programme Spend (Oracle Projects Control Account)
FCO,FCO,28/08/2020,10876992,"353,382.97",OVE ARUP & PARTNERS LTD,Programme Spend (Oracle Projects Control Account)
FCO,FCO,03/08/2020,10848354,"351,558.23",FCO POSTS,Funding Overseas Posts
FCO,FCO,04/08/2020,10849148,"347,467.30",THE ASSOCIATION OF COMMONWEALTH UNIVERSITIES,Programme Spend (Oracle Projects Control Account)
FCO,FCO,21/08/2020,10870451,"343,148.59",FCO SERVICES,Air Freight Dip Bags - Freight & Clearance Charges
FCO,FCO,03/08/2020,10848197,"342,413.10",FCO POSTS,Funding Overseas Posts
FCO,FCO,03/08/2020,10848125,"330,496.13",FCO POSTS,Funding Overseas Posts
FCO,FCO,13/08/2020,10860684,"329,729.32",FCO POSTS,Funding Overseas Posts
FCO,FCO,03/08/2020,10848108,"325,895.25",FCO POSTS,Funding Overseas Posts
FCO,FCO,03/08/2020,10848227,"316,803.01",ATALIAN SERVEST,Misc Security Payments
FCO,FCO,04/08/2020,10849137,"315,572.00",G4S RISK MANAGEMENT LIMITED,Programme Spend (Oracle Projects Control Account)
FCO,FCO,18/08/2020,10867309,"309,661.84",SHELL NIG CLOSED PENSION FUND ADMIN,Multiple Accounts
FCO,FCO,05/08/2020,10850545,"309,396.00",THE HALO TRUST,Programme Spend (Oracle Projects Control Account)
FCO,FCO,04/08/2020,10849591,"307,471.41",FCO SERVICES,Additions-Assets Under Construction (Oracle PA Control Account)
FCO,FCO,25/08/2020,10873511,"299,707.00",SIREN ASSOCIATES LTD,Programme Spend (Oracle Projects Control Account)
FCO,FCO,07/08/2020,10854134,"290,650.00",VESTGUARD UK LTD,Misc Security Payments
FCO,FCO,25/08/2020,10873601,"286,968.31",ISS FACILITY SERVICES LTD FCO OP,Multiple Accounts
FCO,FCO,03/08/2020,10848265,"286,332.00",FCO POSTS,Funding Overseas Posts
FCO,FCO,05/08/2020,10850573,"282,972.27",TETRA TECH INTERNATIONAL DEVELOPMENT,Programme Spend (Oracle Projects Control Account)
FCO,FCO,03/08/2020,10848192,"276,590.93",FCO POSTS,Funding Overseas Posts
FCO,FCO,17/08/2020,10865474,"275,318.93",ISS FACILITY SERVICES LTD FCO OP - POE,Multiple Accounts
FCO,FCO,26/08/2020,10874947,"274,161.87",845 THIRD LP,Multiple Accounts
FCO,FCO,13/08/2020,10860737,"271,341.21",FCO POSTS,Funding Overseas Posts
FCO,FCO,21/08/2020,10869814,"269,296.69",SEGURIDAD SOCIAL,Multiple Accounts
FCO,FCO,25/08/2020,10873546,"265,497.39",885 SECOND AVENUE LESSEE LLC,Multiple Accounts
FCO,FCO,05/08/2020,10850552,"261,946.10",BAE SYSTEMS APPLIED INTELLIGENCE LIMITED,IT Management and Change
FCO,FCO,28/08/2020,10876951,"252,928.35",FDO SERVICES,Residential Property Services
FCO,FCO,18/08/2020,10867314,"250,881.25",SHELL NIG CLOSED PENSION FUND ADMIN,Multiple Accounts
FCO,FCO,26/08/2020,10874697,"248,870.56",MERCY CORPS,Programme Spend (Oracle Projects Control Account)
FCO,FCO,06/08/2020,10852227,"248,044.30",EDF ENERGY,Electricity Non-Residential
FCO,FCO,18/08/2020,10866552,"246,610.30",FDO SERVICES,Recharge Suspense Account (Oracle PA Control Account)
FCO,FCO,13/08/2020,10860600,"245,128.00",UNICEF GLOBAL SHARED SERVICE CENTRE,Programme Spend (Oracle Projects Control Account)
FCO,FCO,20/08/2020,10868867,"242,171.00",INTERPEACE,Programme Spend (Oracle Projects Control Account)
FCO,FCO,13/08/2020,10860739,"239,451.11",FCO POSTS,Funding Overseas Posts
FCO,FCO,27/08/2020,10875844,"239,020.99",MOTT MACDONALD LTD,Programme Spend (Oracle Projects Control Account)
FCO,FCO,05/08/2020,10850558,"237,742.40",BAE SYSTEMS APPLIED INTELLIGENCE LIMITED,IT Management and Change
FCO,FCO,10/08/2020,10856085,"235,817.11",UNITED NATIONS,Programme Spend (Oracle Projects Control Account)
FCO,FCO,19/08/2020,10867933,"231,522.45",PROFESSIONAL LANGUAGE SOLUTIONS,Language Tuition: Essential
FCO,FCO,21/08/2020,10870435,"230,217.37",FCO SERVICES,IT Support
FCO,FCO,03/08/2020,10848100,"230,043.71",FCO POSTS,Funding Overseas Posts
FCO,FCO,05/08/2020,10850617,"229,107.00",INFRASTRUCTURE AND PROJECTS AUTHORITY,Programme Spend (Oracle Projects Control Account)
FCO,FCO,04/08/2020,10849157,"228,634.00",NATIONAL DEMOCRATIC INSTITUTE,Programme Spend (Oracle Projects Control Account)
FCO,FCO,04/08/2020,10849577,"227,249.00",FCO SERVICES,Additions-Assets Under Construction (Oracle PA Control Account)
FCO,FCO,03/08/2020,10848186,"225,433.25",FCO POSTS,Funding Overseas Posts
FCO,FCO,03/08/2020,10848138,"221,579.09",FCO POSTS,Funding Overseas Posts
FCO,FCO,17/08/2020,10865489,"218,194.99",ISS FACILITY SERVICES LTD FCO OP - POE,Multiple Accounts
FCO,FCO,26/08/2020,10874758,"217,250.33",ERNST AND YOUNG LLP,Programme Spend (Oracle Projects Control Account)
FCO,FCO,03/08/2020,10848188,"210,011.91",FCO POSTS,Funding Overseas Posts
FCO,FCO,19/08/2020,10867780,"209,927.09",INTEGRITY RESEARCH AND CONSULTANCY LTD,Programme Spend (Oracle Projects Control Account)
FCO,FCO,03/08/2020,10848118,"209,581.32",FCO POSTS,Funding Overseas Posts
FCO,FCO,03/08/2020,10848141,"208,013.02",FCO POSTS,Funding Overseas Posts
FCO,FCO,03/08/2020,10848109,"205,007.28",FCO POSTS,Funding Overseas Posts
FCO,FCO,14/08/2020,10861891,"204,362.44",GW CONSULTING UK LTD,Multiple Accounts
FCO,FCO,21/08/2020,10870395,"201,819.65",SYNERGY CONSULTANCY LTD,Programme Spend (Oracle Projects Control Account)
FCO,FCO,14/08/2020,10861843,"201,080.00",THE BRITISH COUNCIL,Programme Spend (Oracle Projects Control Account)
FCO,FCO,24/08/2020,10872001,"200,000.00",UNDESA,Programme Spend (Oracle Projects Control Account)
FCO,FCO,03/08/2020,10848201,"197,511.56",FCO POSTS,Funding Overseas Posts
FCO,FCO,18/08/2020,10866527,"197,436.58",CLICKSUPER,Multiple Accounts
FCO,FCO,10/08/2020,10856585,"197,186.00",WESTMINSTER FOUNDATION FOR DEMOCRACY,Programme Spend (Oracle Projects Control Account)
FCO,FCO,03/08/2020,10848202,"195,537.15",FCO POSTS,Funding Overseas Posts
FCO,FCO,27/08/2020,10875815,"194,682.42",CAPGEMINI UK PLC,IT Support
FCO,FCO,21/08/2020,10870158,"194,668.00",INTERSERVE FM LTD,Catering Services
FCO,FCO,05/08/2020,10851287,"193,512.03",RENCO,Rental Payments - non residential
FCO,FCO,19/08/2020,10868149,"192,496.88",SECUREX AGENCIES LTD,Staff and Other Advances AP Control (Oracle Ap Control Account)
FCO,FCO,07/08/2020,10853955,"190,856.26",DEFENCE BUSINESS SERVICES FINANCE,Mod Guarding Services Residential
FCO,FCO,25/08/2020,10873556,"188,288.00",BBC MEDIA ACTION,Programme Spend (Oracle Projects Control Account)
FCO,FCO,03/08/2020,10848176,"187,161.43",FCO POSTS,Funding Overseas Posts
FCO,FCO,12/08/2020,10859705,"183,196.61",MINIMAL RISK CONSULTANCY LTD,UK Guarding Contracts Overseas
FCO,FCO,27/08/2020,10875808,"180,981.99",FCO SERVICES,Specialist Contractors
FCO,FCO,26/08/2020,10874645,"177,246.38",PRICEWATERHOUSECOOPERS LLP,Programme Spend (Oracle Projects Control Account)
FCO,FCO,17/08/2020,10865106,"177,039.95",OVERSEAS SUPPLY SERVICES LTD,Estates Management Services
FCO,FCO,03/08/2020,10848119,"176,507.17",FCO POSTS,Funding Overseas Posts
FCO,FCO,04/08/2020,10849230,"176,284.00",COMPUTACENTER UK LTD,IT Management and Change
FCO,FCO,17/08/2020,10865092,"174,594.39",ZINC NETWORK LIMITED,Programme Spend (Oracle Projects Control Account)
FCO,FCO,05/08/2020,10850549,"173,608.47",BAE SYSTEMS APPLIED INTELLIGENCE LIMITED,IT Management and Change
FCO,FCO,03/08/2020,10847948,"173,594.97",FCO SERVICES,Specialist Contractors
FCO,FCO,28/08/2020,10877000,"172,796.63",CENTER FOR ADVANCED DEFENSE STUDIES,Programme Spend (Oracle Projects Control Account)
FCO,FCO,28/08/2020,10877037,"172,769.99",OVERSEAS SUPPLY SERVICES LTD,Estates Management Services
FCO,FCO,19/08/2020,10867788,"172,765.04",TETRA TECH INTERNATIONAL DEVELOPMENT,Programme Spend (Oracle Projects Control Account)
FCO,FCO,03/08/2020,10848189,"170,395.32",FCO POSTS,Funding Overseas Posts
FCO,FCO,11/08/2020,10857854,"167,500.58",DAI GLOBAL UK LTD,Programme Spend (Oracle Projects Control Account)
FCO,FCO,03/08/2020,10848190,"167,169.15",FCO POSTS,Funding Overseas Posts
FCO,FCO,18/08/2020,10866543,"165,841.00",MARCH,Programme Spend (Oracle Projects Control Account)
FCO,FCO,17/08/2020,10865479,"163,037.40",ISS FACILITY SERVICES LTD FCO OP - POE,Multiple Accounts
FCO,FCO,04/08/2020,10849606,"162,956.24",TORRE ESPACIO CASTELLANA SAU,Multiple Accounts
FCO,FCO,04/08/2020,10849307,"162,504.60",GW CONSULTING UK LTD,UK Mobile Guarding Contract overseas
FCO,FCO,21/08/2020,10869929,"160,475.81",INTERSERVE FM LTD,Multiple Accounts
FCO,FCO,11/08/2020,10858053,"159,701.59",OLYMPIC CONSTRUCTION LTD,Programme Spend (Oracle Projects Control Account)
FCO,FCO,21/08/2020,10870351,"158,500.05",BENNETT CONSTRUCTION COMPANY LTD,Programme Spend (Oracle Projects Control Account)
FCO,FCO,10/08/2020,10856035,"158,270.07",CRESCENT HOTEL LIMITED,Rental Payments - residential
FCO,FCO,28/08/2020,10877192,"157,009.45",THE ROYAL BANK OF SCOTLAND,Multiple Accounts
FCO,FCO,24/08/2020,10872613,"156,429.72",ACCOMMODATION PROVIDER,Recharge Suspense Account (Oracle PA Control Account)
FCO,FCO,03/08/2020,10848143,"156,100.21",FCO POSTS,Funding Overseas Posts
FCO,FCO,21/08/2020,10870365,"153,904.85",BENNETT CONSTRUCTION COMPANY LTD,Programme Spend (Oracle Projects Control Account)
FCO,FCO,13/08/2020,10860589,"153,684.00",CONCILIATION RESOURCES,Programme Spend (Oracle Projects Control Account)
FCO,FCO,03/08/2020,10848193,"151,673.72",FCO POSTS,Funding Overseas Posts
FCO,FCO,14/08/2020,10861742,"151,500.00",UNITED NATIONS,Programme Spend (Oracle Projects Control Account)
FCO,FCO,25/08/2020,10873734,"145,505.87",ISS FACILITY SERVICES LTD FCO OP,Multiple Accounts
FCO,FCO,03/08/2020,10848129,"142,584.98",PA CONSULTING GROUP,Programme Spend (Oracle Projects Control Account)
FCO,FCO,27/08/2020,10876133,"142,336.00",MILTON KEYNES COUNCIL,Rates Taxes Non-Residential
FCO,FCO,12/08/2020,10859690,"141,376.30",OROSTREAM INTERNATIONAL CONTRACTS LTD,Additions-Assets Under Construction (Oracle PA Control Account)
FCO,FCO,12/08/2020,10859664,"140,047.78",TETRA TECH INTERNATIONAL DEVELOPMENT,Programme Spend (Oracle Projects Control Account)
FCO,FCO,18/08/2020,10866747,"140,000.00",PRISONERS ABROAD,Human Rights : Prisoners
FCO,FCO,25/08/2020,10873641,"139,260.25",FCO POSTS,Funding Overseas Posts
FCO,FCO,13/08/2020,10860683,"138,793.04",FCO POSTS,Funding Overseas Posts
FCO,FCO,03/08/2020,10848210,"137,421.53",FCO POSTS,Funding Overseas Posts
FCO,FCO,21/08/2020,10870059,"135,533.61",INTERSERVE FM LTD,Multiple Accounts
FCO,FCO,03/08/2020,10848098,"134,149.99",FCO POSTS,Funding Overseas Posts
FCO,FCO,13/08/2020,10860902,"133,607.12",THE BRITISH COUNCIL,Programme Spend (Oracle Projects Control Account)
FCO,FCO,19/08/2020,10868145,"133,118.63",SCHOOL,Multiple Accounts
FCO,FCO,17/08/2020,10865491,"131,449.91",ISS FACILITY SERVICES LTD FCO OP - POE,Multiple Accounts
FCO,FCO,24/08/2020,10872026,"130,914.03",THE BRITISH COUNCIL,Programme Spend (Oracle Projects Control Account)
FCO,FCO,20/08/2020,10868695,"130,618.82",ACCOMMODATION PROVIDER,Rental Payments - residential
FCO,FCO,24/08/2020,10872034,"129,593.26",COMPUTACENTER UK LTD,IT Management and Change
FCO,FCO,21/08/2020,10870481,"129,348.91",KPMG FIDUCIAIRE,Multiple Accounts
FCO,FCO,06/08/2020,10852627,"126,793.75",PRICEWATERHOUSECOOPERS LLP,Programme Spend (Oracle Projects Control Account)
FCO,FCO,17/08/2020,10865093,"125,195.47",SOLIDARITY FUND POLAND,Programme Spend (Oracle Projects Control Account)
FCO,FCO,05/08/2020,10850589,"124,746.00",TETRA TECH INTERNATIONAL DEVELOPMENT,Programme Spend (Oracle Projects Control Account)
FCO,FCO,28/08/2020,10876963,"124,013.71",FCO SERVICES,Construction Project more than 10k
FCO,FCO,12/08/2020,10858875,"122,659.31",HOTELLINE FOR TOURISTIC INVESTMENT LTD,Multiple Accounts
FCO,FCO,06/08/2020,10852629,"121,930.50",HEALIX INTERNATIONAL LTD,FCO Healthcare Scheme
FCO,FCO,12/08/2020,10859527,"121,660.00",MOTT MACDONALD LTD,Programme Spend (Oracle Projects Control Account)
FCO,FCO,21/08/2020,10870446,"121,360.06",FCO SERVICES,Air Freight Dip Bags - Freight & Clearance Charges
FCO,FCO,26/08/2020,10875069,"120,820.69",AXA MANSARD,Multiple Accounts
FCO,FCO,21/08/2020,10870373,"119,307.11",BUMBAS CONSTRUCTION,Programme Spend (Oracle Projects Control Account)
FCO,FCO,26/08/2020,10874782,"118,947.00",NATIONAL DEMOCRATIC INSTITUTE,Programme Spend (Oracle Projects Control Account)
FCO,FCO,14/08/2020,10861781,"118,500.00",ORACLE CORPORATION (UK) LTD,IT Hosting
FCO,FCO,05/08/2020,10850519,"116,172.62",AETNA,Multiple Accounts
FCO,FCO,14/08/2020,10861796,"116,096.25",ZINC NETWORK LIMITED,Programme Spend (Oracle Projects Control Account)
FCO,FCO,11/08/2020,10857891,"115,783.31",THE GLOBAL STRATEGY NETWORK,Programme Spend (Oracle Projects Control Account)
FCO,FCO,06/08/2020,10852610,"115,695.33",HEALIX INTERNATIONAL LTD,Hospital/Specialist Treatment
FCO,FCO,21/08/2020,10870018,"115,183.30",INTERSERVE FM LTD,Multiple Accounts
FCO,FCO,13/08/2020,10860678,"115,021.85",FCO POSTS,Funding Overseas Posts
FCO,FCO,13/08/2020,10860882,"114,668.83",ALBANY ASSOCIATES,Programme Spend (Oracle Projects Control Account)
FCO,FCO,18/08/2020,10866368,"114,627.84",KBR,Multiple Accounts
FCO,FCO,25/08/2020,10873627,"114,571.71",ISS FACILITY SERVICES LTD FCO OP,Multiple Accounts
FCO,FCO,10/08/2020,10856083,"114,468.38",AECOM,Additions-Assets Under Construction (Oracle PA Control Account)
FCO,FCO,13/08/2020,10860897,"114,124.37",CROWN ESTATE COMMIS CASH A C,Rental Payments - residential
FCO,FCO,18/08/2020,10866572,"113,670.00",COMPUTACENTER UK LTD,End User Software and Hardware
FCO,FCO,04/08/2020,10849127,"113,065.87",MITEL NETWORKS LTD,IT Networking
FCO,FCO,07/08/2020,10853999,"112,967.50",AGILE BYTE LIMITED,Multiple Accounts
FCO,FCO,03/08/2020,10848096,"110,568.00",FCO POSTS,Funding Overseas Posts
FCO,FCO,18/08/2020,10866537,"110,339.89",FCO POSTS,Funding Overseas Posts
FCO,FCO,03/08/2020,10848203,"109,329.28",FCO POSTS,Funding Overseas Posts
FCO,FCO,14/08/2020,10861879,"108,899.21",CROWN AGENTS BANK,Programme Spend (Oracle Projects Control Account)
FCO,FCO,04/08/2020,10849506,"108,875.74",BAE SYSTEMS APPLIED INTELLIGENCE LIMITED,IT Management and Change
FCO,FCO,28/08/2020,10877004,"108,642.66",THE HALO TRUST,Programme Spend (Oracle Projects Control Account)
FCO,FCO,24/08/2020,10872035,"108,539.99",OROSTREAM INTERNATIONAL CONTRACTS LTD,Additions-Assets Under Construction (Oracle PA Control Account)
FCO,FCO,19/08/2020,10867762,"107,912.00",GREEN FUELS,Programme Spend (Oracle Projects Control Account)
FCO,FCO,13/08/2020,10860681,"107,353.73",FCO POSTS,Funding Overseas Posts
FCO,FCO,20/08/2020,10868731,"107,114.82",PALLADIUM,Programme Spend (Oracle Projects Control Account)
FCO,FCO,25/08/2020,10873551,"106,632.00",INNOVATION AND INSIGHT FZE,Programme Spend (Oracle Projects Control Account)
FCO,FCO,19/08/2020,10868054,"106,278.05","ORCHARD, ROMNEY, BECK & ASSOC INC",Programme Spend (Oracle Projects Control Account)
FCO,FCO,03/08/2020,10848123,"104,912.97",FCO POSTS,Funding Overseas Posts
FCO,FCO,11/08/2020,10857932,"103,993.65",TRANSAMERICA,Multiple Accounts
FCO,FCO,20/08/2020,10869240,"103,876.25",TRANSAMERICA,Multiple Accounts
FCO,FCO,06/08/2020,10852199,"103,682.99",ADP,Multiple Accounts
FCO,FCO,18/08/2020,10866641,"103,506.39",AFRICAN SKIES LTD,Local Guards
FCO,FCO,27/08/2020,10875768,"103,506.39",AFRICAN SKIES LTD,Local Guards
FCO,FCO,20/08/2020,10868817,"101,523.41",ADP,Multiple Accounts
FCO,FCO,19/08/2020,10867508,"100,625.91",SHANGHAI FOREIGN AGENCY SERVICE COMPANY,Multiple Accounts
FCO,FCO,24/08/2020,10872121,"100,524.75",WYG GROUP LIMITED,Additions-Assets Under Construction (Oracle PA Control Account)
FCO,FCO,07/08/2020,10854382,"100,000.00",OPCW,Programme Spend (Oracle Projects Control Account)
FCO,FCO,19/08/2020,10867963,"100,000.00",UNITED NATIONS,Programme Spend (Oracle Projects Control Account)
FCO,FCO,03/08/2020,10848112,"99,685.61",FCO POSTS,Funding Overseas Posts
FCO,FCO,13/08/2020,10860630,"99,599.70",IFRC INTERNATIONAL FEDERATION OF RED CROSS AND RED CRESCENT SOCIETIES,Programme Spend (Oracle Projects Control Account)
FCO,FCO,24/08/2020,10872014,"98,368.77",ITAD LTD,Programme Spend (Oracle Projects Control Account)
FCO,FCO,05/08/2020,10875258,"98,307.53",THE ROYAL BANK OF SCOTLAND,GPC Clearing Account
FCO,FCO,27/08/2020,10875839,"98,297.12",INTERNTL COMMISSION MISSING PERSONS,Programme Spend (Oracle Projects Control Account)
FCO,FCO,04/08/2020,10849224,"97,585.00",FCO SERVICES,Unscheduled repairs to building infrastructure
FCO,FCO,26/08/2020,10874841,"97,503.10",STRATAGEM CONSULTING,Programme Spend (Oracle Projects Control Account)
FCO,FCO,18/08/2020,10867307,"96,779.39",SHELL NIG CLOSED PENSION FUND ADMIN,Multiple Accounts
FCO,FCO,21/08/2020,10869741,"96,519.00",INNOVATION AND INSIGHT FZE,Programme Spend (Oracle Projects Control Account)
FCO,FCO,04/08/2020,10849348,"96,375.00",Populus Limited,Research Budget
FCO,FCO,24/08/2020,10872050,"94,861.69",ARK GROUP DMCC,Programme Spend (Oracle Projects Control Account)
FCO,FCO,03/08/2020,10848206,"93,031.14",FCO POSTS,Funding Overseas Posts
FCO,FCO,25/08/2020,10873646,"92,546.80",ISS FACILITY SERVICES LTD FCO OP,Multiple Accounts
FCO,FCO,13/08/2020,10860958,"92,109.30",AETNA,Multiple Accounts
FCO,FCO,06/08/2020,10852595,"92,000.00",CAUTION YOUR BLAST LTD,IT Management and Change
FCO,FCO,17/08/2020,10865470,"91,723.93",ISS FACILITY SERVICES LTD FCO OP - POE,Multiple Accounts
FCO,FCO,03/08/2020,10848170,"91,564.90",FCO POSTS,Funding Overseas Posts
FCO,FCO,20/08/2020,10868732,"90,754.65",PALLADIUM,Programme Spend (Oracle Projects Control Account)
FCO,FCO,13/08/2020,10861522,"90,592.64",ALMUTAKHASSISA MEDICAL INSURANCE CO,LS Staff Medical Costs
FCO,FCO,03/08/2020,10848177,"90,447.07",FCO POSTS,Funding Overseas Posts
FCO,FCO,06/08/2020,10852628,"89,622.78",COMPUTACENTER UK LTD,IT Management and Change
FCO,FCO,03/08/2020,10847937,"89,596.12",SENSETECH SYSTEMS,Unscheduled repairs to building infrastructure
FCO,FCO,05/08/2020,10850560,"88,669.92",BAE SYSTEMS APPLIED INTELLIGENCE LIMITED,IT Management and Change
FCO,FCO,08/08/2020,10855111,"87,704.16",DIPLOMAT FREIGHT SERVICES LTD(DFS),Multiple Accounts
FCO,FCO,03/08/2020,10848128,"87,430.60",COMPUTACENTER UK LTD,End User Software and Hardware
FCO,FCO,17/08/2020,10865392,"85,647.99",LEGAL AND GENERAL ASSURANCE SOCIETY LTD,Additional Volunteer Contribution
FCO,FCO,24/08/2020,10872597,"85,486.15",BHC INDIA STAFF PROVIDENT FUND,Multiple Accounts
FCO,FCO,11/08/2020,10858193,"85,452.05",TETRA TECH INTERNATIONAL DEVELOPMENT,Programme Spend (Oracle Projects Control Account)
FCO,FCO,19/08/2020,10867802,"84,846.00",WESTMINSTER FOUNDATION FOR DEMOCRACY,Programme Spend (Oracle Projects Control Account)
FCO,FCO,05/08/2020,10850554,"84,717.40",TETRA TECH INTERNATIONAL DEVELOPMENT,Programme Spend (Oracle Projects Control Account)
FCO,FCO,06/08/2020,10875258,"84,687.84",THE ROYAL BANK OF SCOTLAND,GPC Clearing Account
FCO,FCO,03/08/2020,10848179,"84,001.73",FCO POSTS,Funding Overseas Posts
FCO,FCO,21/08/2020,10870127,"83,499.86",INTERSERVE FM LTD,Multiple Accounts
FCO,FCO,10/08/2020,10856232,"83,219.27",HEALIX INTERNATIONAL LTD,Hospital/Specialist Treatment
FCO,FCO,20/08/2020,10869054,"82,533.51",SCHOOL ,Schooling for Children at Post
FCO,FCO,03/08/2020,10848205,"82,116.28",FCO POSTS,Funding Overseas Posts
FCO,FCO,13/08/2020,10860738,"82,116.28",FCO POSTS,Funding Overseas Posts
FCO,FCO,07/08/2020,10854038,"81,958.00",NATIONAL DEMOCRATIC INSTITUTE,Programme Spend (Oracle Projects Control Account)
FCO,FCO,03/08/2020,10848200,"81,453.95",FCO POSTS,Funding Overseas Posts
FCO,FCO,13/08/2020,10860709,"81,396.40",FCO POSTS,Funding Overseas Posts
FCO,FCO,11/08/2020,10858260,"80,208.16",AXIOM INTERNATIONAL LTD,Programme Spend (Oracle Projects Control Account)
FCO,FCO,14/08/2020,10862082,"79,266.93",UNITED NATIONS,Programme Spend (Oracle Projects Control Account)
FCO,FCO,10/08/2020,10856042,"79,135.04",CRESCENT HOTEL LIMITED,Rental Payments - residential
FCO,FCO,21/08/2020,10870159,"78,985.00",INTERSERVE FM LTD,Catering Services
FCO,FCO,12/08/2020,10859659,"78,496.80",CAPGEMINI UK PLC,IT/IS Consultancy
FCO,FCO,05/08/2020,10850775,"78,272.31",WYG GROUP LIMITED,Programme Spend (Oracle Projects Control Account)
FCO,FCO,19/08/2020,10867497,"77,938.81",ACCOMMODATION PROVIDER,Rental Payments - residential
FCO,FCO,25/08/2020,10873565,"77,852.00",POLICY AND LEGAL ADVOCACY CENTRE,Programme Spend (Oracle Projects Control Account)
FCO,FCO,21/08/2020,10870473,"77,833.16",KPMG FIDUCIAIRE,Multiple Accounts
FCO,FCO,26/08/2020,10874712,"77,084.00",GLOBAL DISINFORMATION INDEX,Programme Spend (Oracle Projects Control Account)
FCO,FCO,03/08/2020,10848145,"76,874.38",FCO POSTS,Funding Overseas Posts
FCO,FCO,14/08/2020,10861996,"76,725.62",AMSS,Programme Spend (Oracle Projects Control Account)
FCO,FCO,13/08/2020,10860679,"76,681.24",FCO POSTS,Funding Overseas Posts
FCO,FCO,24/08/2020,10872010,"76,573.60",FCO SERVICES,Air Freight Dip Bags - Freight & Clearance Charges
FCO,FCO,04/08/2020,10875258,"76,553.17",THE ROYAL BANK OF SCOTLAND,GPC Clearing Account
FCO,FCO,24/08/2020,10872012,"76,171.73",FCO SERVICES,Additions-Assets Under Construction (Oracle PA Control Account)
FCO,FCO,19/08/2020,10867531,"75,977.99",GUANGDONG SERVICE OFFICE FOR FOREIGN ESTABLISHMENTS,Multiple Accounts
FCO,FCO,17/08/2020,10865490,"75,741.56",ISS FACILITY SERVICES LTD FCO OP - POE,Multiple Accounts
FCO,FCO,03/08/2020,10848195,"75,440.07",FCO POSTS,Funding Overseas Posts
FCO,FCO,07/08/2020,10854030,"75,206.88",GW CONSULTING UK LTD,UK Guarding Contracts Overseas
FCO,FCO,14/08/2020,10862298,"75,000.00",NORTH HIGHLAND UK LTD,Programme Spend (Oracle Projects Control Account)
FCO,FCO,26/08/2020,10874689,"75,000.00",FCO SERVICES,Repairs And Refurbishment: Works Residential
FCO,FCO,04/08/2020,10849130,"74,938.94",MITEL NETWORKS LTD,IT Networking
FCO,FCO,26/08/2020,10874684,"74,704.00",COMPUTACENTER UK LTD,IT Support
FCO,FCO,25/08/2020,10873566,"74,671.16",ISS FACILITY SERVICES LTD FCO OP,Multiple Accounts
FCO,FCO,13/08/2020,10860598,"74,588.81",CARDIFF UNIVERSITY,Programme Spend (Oracle Projects Control Account)
FCO,FCO,14/08/2020,10861612,"74,581.36", SCHOOL,Multiple Accounts
FCO,FCO,13/08/2020,10860599,"74,304.12",ACCOMMODATION PROVIDER,Rental Payments - residential
FCO,FCO,17/08/2020,10865134,"73,917.64",OPERADORA ATXK,Additions-Assets Under Construction (Oracle PA Control Account)
FCO,FCO,10/08/2020,10856595,"73,850.00",REUTERS FOUNDATION CONSULTANTS LIMITED,Programme Spend (Oracle Projects Control Account)
FCO,FCO,03/08/2020,10848116,"73,736.68",FCO POSTS,Funding Overseas Posts
FCO,FCO,14/08/2020,10862003,"73,613.99",ACCOMMODATION PROVIDER,Rental Payments - residential
FCO,FCO,21/08/2020,10870087,"73,450.33",INTERSERVE FM LTD,Construction Project more than 10k
FCO,FCO,07/08/2020,10854284,"73,363.04",PALLADIUM,Programme Spend (Oracle Projects Control Account)
FCO,FCO,26/08/2020,10874835,"72,997.61",GW CONSULTING UK LTD,UK Guarding Contracts Overseas
FCO,FCO,18/08/2020,10866377,"72,834.94",BBC MEDIA ACTION,Programme Spend (Oracle Projects Control Account)
FCO,FCO,26/08/2020,10875098,"72,511.48",CLEVELAND RICHARDS,Programme Spend (Oracle Projects Control Account)
FCO,FCO,17/08/2020,10865494,"72,493.03",ISS FACILITY SERVICES LTD FCO OP - POE,Multiple Accounts
FCO,FCO,28/08/2020,10877051,"72,309.94",PICKFORDS MOVE MANAGEMENT LTD,Heavy Baggage
FCO,FCO,03/08/2020,10848251,"72,080.37",FCO POSTS,Funding Overseas Posts
FCO,FCO,03/08/2020,10848093,"72,080.36",FCO POSTS,Funding Overseas Posts
FCO,FCO,07/08/2020,10854013,"72,005.08",GET SAFE ONLINE,Programme Spend (Oracle Projects Control Account)
FCO,FCO,07/08/2020,10875258,"71,924.59",THE ROYAL BANK OF SCOTLAND,GPC Clearing Account
FCO,FCO,25/08/2020,10873582,"71,894.95",ISS FACILITY SERVICES LTD FCO OP,Multiple Accounts
FCO,FCO,20/08/2020,10868756,"70,703.00",THE ASIA FOUNDATION,Programme Spend (Oracle Projects Control Account)
FCO,FCO,19/08/2020,10867858,"70,329.28",ALBANY ASSOCIATES,Programme Spend (Oracle Projects Control Account)
FCO,FCO,28/08/2020,10876940,"70,300.00",FCO SERVICES,Additions-Assets Under Construction (Oracle PA Control Account)
FCO,FCO,14/08/2020,10862103,"70,077.00",BROOKINGS INSTITUTION,Programme Spend (Oracle Projects Control Account)
FCO,FCO,26/08/2020,10874458,"68,748.69",SCHOOL ,Schooling for Children at Post
FCO,FCO,28/08/2020,10876768,"68,435.58",THE BRITISH COUNCIL,Programme Spend (Oracle Projects Control Account)
FCO,FCO,17/08/2020,10865406,"68,102.52",ERGO LEBENSVERSICHERUNG AG,Multiple Accounts
FCO,FCO,21/08/2020,10869992,"68,016.24",INTERSERVE FM LTD,Residential Property Services
FCO,FCO,27/08/2020,10876334,"67,318.64",AETNA,Multiple Accounts
FCO,FCO,17/08/2020,10865172,"67,220.00",CROWN AGENTS LIMITED,Programme Spend (Oracle Projects Control Account)
FCO,FCO,11/08/2020,10857855,"67,024.74",SAINT HELENA GOVERNMENT,Programme Spend (Oracle Projects Control Account)
FCO,FCO,28/08/2020,10876968,"66,868.50",FCO SERVICES,IT/IS Consultancy
FCO,FCO,26/08/2020,10874688,"66,756.01",COMPUTACENTER UK LTD,IT Support
FCO,FCO,28/08/2020,10877077,"65,923.00",ONE SANSOME PROPERTY LLC,Multiple Accounts
FCO,FCO,11/08/2020,10857875,"65,788.20",UNITED NATIONS,Programme Spend (Oracle Projects Control Account)
FCO,FCO,18/08/2020,10866805,"65,400.51",H M EXCHEQUER,CFER Payments to The Exchequer (CSC Use Only)
FCO,FCO,03/08/2020,10848102,"65,179.05",FCO POSTS,Funding Overseas Posts
FCO,FCO,05/08/2020,10850562,"64,903.41",BAE SYSTEMS APPLIED INTELLIGENCE LIMITED,IT Management and Change
FCO,FCO,25/08/2020,10873522,"64,549.84",AXIOM INTERNATIONAL LTD,Programme Spend (Oracle Projects Control Account)
FCO,FCO,25/08/2020,10873731,"64,307.08",ISS FACILITY SERVICES LTD FCO OP,Multiple Accounts
FCO,FCO,21/08/2020,10869834,"64,297.74",COMMONWEALTH PARLIAMENTARY ASSOCIATION,Programme Spend (Oracle Projects Control Account)
FCO,FCO,03/08/2020,10848107,"63,645.43",FCO POSTS,Funding Overseas Posts
FCO,FCO,20/08/2020,10868678,"63,638.31",DATACOM EMPLOYER SERVICES,Multiple Accounts
FCO,FCO,13/08/2020,10860711,"63,308.31",FCO POSTS,Funding Overseas Posts
FCO,FCO,21/08/2020,10870289,"63,234.95",AETNA,Multiple Accounts
FCO,FCO,10/08/2020,10856074,"63,168.00",RAMBOLL UK LTD,Residential Property Services
FCO,FCO,10/08/2020,10856215,"63,125.21",MAZARS CINOTTI ACCOUNTING DOO,Multiple Accounts
FCO,FCO,13/08/2020,10860907,"63,069.58",CABINET OFFICE,Programme Spend (Oracle Projects Control Account)
FCO,FCO,21/08/2020,10869977,"62,428.19",INTERSERVE FM LTD,Multiple Accounts
FCO,FCO,21/08/2020,10870148,"60,673.43",INTERSERVE FM LTD,Residential Property Services
FCO,FCO,13/08/2020,10860903,"60,579.18",ALBANY ASSOCIATES,Programme Spend (Oracle Projects Control Account)
FCO,FCO,07/08/2020,10854286,"60,416.57",PALLADIUM,Programme Spend (Oracle Projects Control Account)
FCO,FCO,05/08/2020,10850594,"60,322.56",TETRA TECH INTERNATIONAL DEVELOPMENT,Programme Spend (Oracle Projects Control Account)
FCO,FCO,25/08/2020,10873678,"60,273.13",TRESOR PUBLIC,Multiple Accounts
FCO,FCO,26/08/2020,10874768,"60,142.98",DAI GLOBAL UK LTD,Programme Spend (Oracle Projects Control Account)
FCO,FCO,28/08/2020,10877148,"60,124.83",PICKFORDS MOVE MANAGEMENT LTD,Heavy Baggage
FCO,FCO,26/08/2020,10874686,"59,911.20",FCO SERVICES,Additions-Assets Under Construction (Oracle PA Control Account)
FCO,FCO,03/08/2020,10875258,"59,908.34",THE ROYAL BANK OF SCOTLAND,GPC Clearing Account
FCO,FCO,25/08/2020,10873793,"59,849.88",ECORYS UK LTD,Programme Spend (Oracle Projects Control Account)
FCO,FCO,19/08/2020,10867600,"59,692.52",WALSONS SERVICES PVT LTD,Local Guards
FCO,FCO,21/08/2020,10870454,"59,388.47",KPMG FIDUCIAIRE,Rental Payments - residential
FCO,FCO,06/08/2020,10852502,"59,184.57",Pace Construction,Programme Spend (Oracle Projects Control Account)
FCO,FCO,28/08/2020,10877134,"59,122.06",PICKFORDS MOVE MANAGEMENT LTD,Unaccompanied Air Freight
FCO,FCO,10/08/2020,10856056,"58,872.61",CAISSE NATIONALE DE SECU SOCIA,Multiple Accounts
FCO,FCO,26/08/2020,10874847,"58,694.98",SSK,Multiple Accounts
FCO,FCO,19/08/2020,10867763,"58,407.98",ACCOUNTING SOLUTIONS,Multiple Accounts
FCO,FCO,25/08/2020,10873923,"58,241.38",DLG ENGINEERING LTD,Programme Spend (Oracle Projects Control Account)
FCO,FCO,06/08/2020,10852480,"57,910.21",CLEVELAND RICHARDS,Programme Spend (Oracle Projects Control Account)
FCO,FCO,26/08/2020,10874666,"57,709.22",ACCOMMODATION PROVIDER,Multiple Accounts
FCO,FCO,17/08/2020,10865099,"57,181.15",COMPUTACENTER UK LTD,End User Software and Hardware
FCO,FCO,17/08/2020,10865300,"56,836.83",AXIOM INTERNATIONAL LTD,Programme Spend (Oracle Projects Control Account)
FCO,FCO,05/08/2020,10850555,"56,739.47",BAE SYSTEMS APPLIED INTELLIGENCE LIMITED,IT Management and Change
FCO,FCO,14/08/2020,10861776,"56,584.00",INSTITUT FRANCAIS,Language Tuition: Essential
FCO,FCO,03/08/2020,10848168,"56,516.43",FCO POSTS,Funding Overseas Posts
FCO,FCO,19/08/2020,10867466,"56,256.71",SOUTH REVENUE SERVICE,Multiple Accounts
FCO,FCO,04/08/2020,10849221,"56,245.02",FCO SERVICES,Additions-Assets Under Construction (Oracle PA Control Account)
FCO,FCO,03/08/2020,10847907,"56,090.79",OAS ORGANIZATION AMERICAN STATES,Programme Spend (Oracle Projects Control Account)
FCO,FCO,11/08/2020,10857772,"55,977.30",TOYOTA CENTRAL ASIA FZE,Additions-Assets Under Construction (Oracle PA Control Account)
FCO,FCO,10/08/2020,10856648,"55,883.91",RESTORE PLC,Specialist Contractors
FCO,FCO,03/08/2020,10848204,"55,796.27",FCO POSTS,Funding Overseas Posts
FCO,FCO,12/08/2020,10859224,"55,246.75",TMT CONSTRUCTION LTD,Additions-Assets Under Construction (Oracle PA Control Account)
FCO,FCO,25/08/2020,10873513,"55,230.00",PITCAIRN ISLANDS OFFICE,Programme Spend (Oracle Projects Control Account)
FCO,FCO,06/08/2020,10852951,"55,210.49",ACCOMMODATION PROVIDER,Rental Payments - residential
FCO,FCO,06/08/2020,10852954,"55,210.49",ACCOMMODATION PROVIDER,Rental Payments - residential
FCO,FCO,14/08/2020,10862188,"54,845.50",BELASTINGDIENST CENTRALE ADMINISTRATIE TE APELDOORN,Multiple Accounts
FCO,FCO,12/08/2020,10859727,"54,384.75",SAYARA INTERNATIONAL,Programme Spend (Oracle Projects Control Account)
FCO,FCO,03/08/2020,10847970,"54,121.00",THE HALO TRUST,Programme Spend (Oracle Projects Control Account)
FCO,FCO,24/08/2020,10872007,"53,683.47",SEARCH FOR COMMON GROUND,Programme Spend (Oracle Projects Control Account)
FCO,FCO,03/08/2020,10848235,"53,676.87",FCO POSTS,Funding Overseas Posts
FCO,FCO,03/08/2020,10848036,"53,672.75",PICKFORDS MOVE MANAGEMENT LTD,Heavy Baggage
FCO,FCO,20/08/2020,10869072,"53,587.05",SCHOOL ,Schooling for Children at Post
FCO,FCO,04/08/2020,10849208,"53,574.30",FCO SERVICES,Construction Project more than 10k
FCO,FCO,18/08/2020,10866655,"53,414.35",G4S SECURITY SERVICES KENYA LTD,Multiple Accounts
FCO,FCO,14/08/2020,10861854,"53,105.08",BRIGHT HORIZONS FAMILY SOLUTION LTD,FCO KCS Nursery
FCO,FCO,17/08/2020,10865486,"52,853.28",ISS FACILITY SERVICES LTD FCO OP - POE,Multiple Accounts
FCO,FCO,24/08/2020,10872049,"52,823.27",PALLADIUM,Programme Spend (Oracle Projects Control Account)
FCO,FCO,17/08/2020,10865378,"52,752.64",THE BRITISH COUNCIL,Programme Spend (Oracle Projects Control Account)
FCO,FCO,26/08/2020,10874678,"52,630.16",COMPUTACENTER UK LTD,IT Management and Change
FCO,FCO,20/08/2020,10869049,"52,213.98",SCHOOL ,Schooling for Children at Post
FCO,FCO,19/08/2020,10867503,"52,189.89",FIRST GULF PROPERTIES,Rental Payments - residential
FCO,FCO,07/08/2020,10854079,"52,095.00",AUGMENTAS GROUP LTD,Programme Spend (Oracle Projects Control Account)
FCO,FCO,26/08/2020,10874757,"50,921.16",ERNST AND YOUNG LLP,Programme Spend (Oracle Projects Control Account)
FCO,FCO,03/08/2020,10848104,"50,839.66",FCO POSTS,Funding Overseas Posts
FCO,FCO,20/08/2020,10868765,"50,631.78",EDENRED,Multiple Accounts
FCO,FCO,18/08/2020,10867311,"50,441.68",SHELL NIG CLOSED PENSION FUND ADMIN,Multiple Accounts
FCO,FCO,26/08/2020,10874713,"50,161.11",SISTEMA INTEGRADO MULTIPLE DE PAGOS,Multiple Accounts
FCO,FCO,28/08/2020,10876956,"50,000.00",FCO SERVICES,Additions-Assets Under Construction (Oracle PA Control Account)
FCO,FCO,26/08/2020,10874591,"49,943.67",SEARCH FOR COMMON GROUND,Programme Spend (Oracle Projects Control Account)
FCO,FCO,04/08/2020,10849100,"49,756.96",CONCILIATION RESOURCES,Programme Spend (Oracle Projects Control Account)
FCO,FCO,14/08/2020,10862108,"49,330.67",SAINT HELENA GOVERNMENT,Programme Spend (Oracle Projects Control Account)
FCO,FCO,21/08/2020,10869799,"49,245.68",JONES LANG LASALLE,Multiple Accounts
FCO,FCO,26/08/2020,10874642,"49,014.33",GLOBAL PARTNERS GOVERNANCE PRACTICE LTD,Programme Spend (Oracle Projects Control Account)
FCO,FCO,26/08/2020,10874861,"48,967.04",SSK,Multiple Accounts
FCO,FCO,03/08/2020,10848059,"48,683.50",COMPUTACENTER UK LTD,IT Management and Change
FCO,FCO,21/08/2020,10870093,"48,530.27",INTERSERVE FM LTD,Construction Project more than 10k
FCO,FCO,11/08/2020,10858208,"48,305.49",AXIOM INTERNATIONAL LTD,Programme Spend (Oracle Projects Control Account)
FCO,FCO,18/08/2020,10866802,"48,137.77",H M EXCHEQUER,CFER Payments to The Exchequer (CSC Use Only)
FCO,FCO,03/08/2020,10848140,"47,933.44",FCO POSTS,Funding Overseas Posts
FCO,FCO,10/08/2020,10856185,"47,782.37",RANGER PROTECTION AND SECURITY COMPANY LTD,Local Guards
FCO,FCO,25/08/2020,10873644,"47,231.86",ISS FACILITY SERVICES LTD FCO OP,Multiple Accounts
FCO,FCO,21/08/2020,10870352,"47,118.07",SECURITAS SAC,Local Guards
FCO,FCO,03/08/2020,10847979,"47,068.77",PICKFORDS MOVE MANAGEMENT LTD,Heavy Baggage
FCO,FCO,26/08/2020,10874734,"46,809.91",SOCIAL SECURITY CONTRIBTN AUTHORITY,Multiple Accounts
FCO,FCO,13/08/2020,10860896,"46,711.68",BAE SYSTEMS APPLIED INTELLIGENCE LIMITED,IT Management and Change
FCO,FCO,05/08/2020,10851115,"46,654.35",ICTS ITALIA SRL,Local Guards
FCO,FCO,19/08/2020,10868123,"46,590.41",MEPITS SOLUTIONS,Programme Spend (Oracle Projects Control Account)
FCO,FCO,03/08/2020,10848181,"46,079.95",FCO POSTS,Funding Overseas Posts
FCO,FCO,03/08/2020,10848092,"46,008.74",FCO POSTS,Funding Overseas Posts
FCO,FCO,12/08/2020,10859798,"46,008.74",IQB CASHBOX TOP-UP,Inter Account Transfer (Cash in Transit)
FCO,FCO,06/08/2020,10852497,"45,997.24",DESIGN COLLABORATIVE,Programme Spend (Oracle Projects Control Account)
FCO,FCO,04/08/2020,10849059,"45,787.85",PILGRIMS AFRICA LTD,Local Guards
FCO,FCO,24/08/2020,10872347,"45,787.85",PILGRIMS AFRICA LTD,Local Guards
FCO,FCO,21/08/2020,10870387,"45,499.75",HEALTH AUTHORITY OF ANGUILLA,Programme Spend (Oracle Projects Control Account)
FCO,FCO,25/08/2020,10873633,"45,498.39",ISS FACILITY SERVICES LTD FCO OP,Multiple Accounts
FCO,FCO,20/08/2020,10868998,"45,472.50",MICROSOFT LIMITED,IT Management and Change
FCO,FCO,13/08/2020,10860847,"45,325.20",SAUDI REAL ESTATE COMPANY,Multiple Accounts
FCO,FCO,03/08/2020,10848144,"45,220.22",FCO POSTS,Funding Overseas Posts
FCO,FCO,03/08/2020,10848146,"45,220.22",FCO POSTS,Funding Overseas Posts
FCO,FCO,24/08/2020,10871970,"45,090.27",CONTRIBUTORY PROVIDENT FUND,Multiple Accounts
FCO,FCO,19/08/2020,10867713,"44,835.00",CABINET OFFICE,Specialist Contractors
FCO,FCO,21/08/2020,10870102,"44,699.53",INTERSERVE FM LTD,Additions-Assets Under Construction (Oracle PA Control Account)
FCO,FCO,07/08/2020,10854115,"44,684.95",OROSTREAM INTERNATIONAL CONTRACTS LTD,Additions-Assets Under Construction (Oracle PA Control Account)
FCO,FCO,24/08/2020,10872017,"44,554.13",ITAD LTD,Programme Spend (Oracle Projects Control Account)
FCO,FCO,19/08/2020,10867515,"44,322.66",INTERNATIONAL CENTRE FOR MIGRATION POLICY DEVELOPMENT,Programme Spend (Oracle Projects Control Account)
FCO,FCO,25/08/2020,10873940,"44,194.88",BENNETT CONSTRUCTION COMPANY LTD,Programme Spend (Oracle Projects Control Account)
FCO,FCO,05/08/2020,10850777,"43,920.25",GCHQ NCSC,UK Based Staff Pay (Oracle PAY Control Account)
FCO,FCO,17/08/2020,10865413,"43,900.00",BAE SYSTEMS APPLIED INTELLIGENCE LIMITED,IT Management and Change
FCO,FCO,03/08/2020,10848117,"43,708.30",FCO POSTS,Funding Overseas Posts
FCO,FCO,21/08/2020,10870139,"43,638.10",INTERSERVE FM LTD,Multiple Accounts
FCO,FCO,26/08/2020,10874748,"43,630.63",IIZUKA,IT Hosting
FCO,FCO,03/08/2020,10848137,"43,411.41",FCO POSTS,Funding Overseas Posts
FCO,FCO,03/08/2020,10847909,"43,407.36",CONTROLLED BUILDING MEASURES LIMITED,Additions-Assets Under Construction (Oracle PA Control Account)
FCO,FCO,12/08/2020,10859217,"43,317.36",TETRA TECH INTERNATIONAL DEVELOPMENT,Programme Spend (Oracle Projects Control Account)
FCO,FCO,04/08/2020,10849069,"43,174.01",TORCHLIGHT SOLUTIONS LTD,Programme Spend (Oracle Projects Control Account)
FCO,FCO,06/08/2020,10852189,"43,092.29",AETNA,Multiple Accounts
FCO,FCO,17/08/2020,10865217,"43,063.37",GOVERNMENT LEGAL DEPARTMENT,Legal Consultancy
FCO,FCO,06/08/2020,10852089,"43,018.17",ACCOMMODATION PROVIDER,Rental Payments - residential
FCO,FCO,13/08/2020,10861032,"42,665.49",HAYS SPECIALIST RECRUITMENT LTD,Specialist Contractors
FCO,FCO,27/08/2020,10876250,"42,625.83",CAISSE CANTONALE GENEVOISE COMPEN,Multiple Accounts
FCO,FCO,20/08/2020,10869001,"42,586.40",HMRC HM REVENUE AND CUSTOMS,Temporary Staff (Admin and Clerical Only)
FCO,FCO,07/08/2020,10854282,"42,524.88",PALLADIUM,Programme Spend (Oracle Projects Control Account)
FCO,FCO,27/08/2020,10876138,"42,294.00",WESTMINSTER CITY COUNCIL,Rates Taxes Non-Residential
FCO,FCO,07/08/2020,10854283,"42,239.57",G4S SECURITY SERVICES SA,Local Guards
FCO,FCO,06/08/2020,10852506,"42,174.68",REBEL MARINE LTD,Programme Spend (Oracle Projects Control Account)
FCO,FCO,12/08/2020,10859716,"42,086.25",COMPUTACENTER UK LTD,IT/IS Consultancy
FCO,FCO,13/08/2020,10860665,"42,050.25",SECURITAS SAC,Local Guards
FCO,FCO,04/08/2020,10849347,"42,007.30",TORO,Programme Spend (Oracle Projects Control Account)
FCO,FCO,17/08/2020,10865482,"41,981.33",ISS FACILITY SERVICES LTD FCO OP - POE,Multiple Accounts
FCO,FCO,21/08/2020,10869844,"41,808.00",PEACEFUL CHANGE INITIATIVE,Programme Spend (Oracle Projects Control Account)
FCO,FCO,21/08/2020,10870414,"41,806.89",FCO SERVICES,Residential Property Services
FCO,FCO,14/08/2020,10861650,"41,727.59",HARIS ENTERPRISES PVT LTD,Local Guards
FCO,FCO,07/08/2020,10854579,"41,663.23",SCHOOL ,Schooling for Children at Post
FCO,FCO,24/08/2020,10872016,"41,600.00",TORCHLIGHTGROUP LIMITED,Programme Spend (Oracle Projects Control Account)
FCO,FCO,19/08/2020,10867707,"41,442.50",CABINET OFFICE,Specialist Contractors
FCO,FCO,03/08/2020,10848094,"41,440.84",FCO POSTS,Funding Overseas Posts
FCO,FCO,26/08/2020,10875182,"41,423.22",WGKK WINNER GEBIETSKRA NKENKASSE,Multiple Accounts
FCO,FCO,19/08/2020,10867493,"41,408.28",BEDER,Programme Spend (Oracle Projects Control Account)
FCO,FCO,05/08/2020,10851208,"41,407.87",ACCL INTERNATIONAL KABUL,Fuel Oil Residential
FCO,FCO,19/08/2020,10867703,"41,160.00",CABINET OFFICE,Specialist Contractors
FCO,FCO,18/08/2020,10867312,"41,158.99",SHELL NIG CLOSED PENSION FUND ADMIN,Multiple Accounts
FCO,FCO,19/08/2020,10867705,"41,100.00",CABINET OFFICE,Specialist Contractors
FCO,FCO,25/08/2020,10873618,"41,092.88",ISS FACILITY SERVICES LTD FCO OP,Multiple Accounts
FCO,FCO,07/08/2020,10854328,"41,068.19",DANAT QATAR LLC,Multiple Accounts
FCO,FCO,12/08/2020,10859734,"41,019.84",TORCHLIGHT SOLUTIONS LTD,Programme Spend (Oracle Projects Control Account)
FCO,FCO,24/08/2020,10872029,"40,708.11",ACCOMMODATION PROVIDER,Rental Payments - residential
FCO,FCO,05/08/2020,10850348,"40,657.48",PAGE GROUP ISRAEL LIMITED,Local Guards
FCO,FCO,24/08/2020,10872025,"40,480.29",FCO SERVICES,Construction Project more than 10k
FCO,FCO,17/08/2020,10865492,"40,469.67",ISS FACILITY SERVICES LTD FCO OP - POE,Multiple Accounts
FCO,FCO,17/08/2020,10865475,"40,365.74",ISS FACILITY SERVICES LTD FCO OP - POE,Multiple Accounts
FCO,FCO,19/08/2020,10867483,"40,359.63",NEW ERA OIL AND GAS,Fuel Oil Residential
FCO,FCO,19/08/2020,10867902,"40,190.94",UNITED NATIONS POPULATION FUND,Programme Spend (Oracle Projects Control Account)
FCO,FCO,13/08/2020,10860577,"40,175.64",INTEGRITY RESEARCH AND CONSULTANCY LTD,Programme Spend (Oracle Projects Control Account)
FCO,FCO,20/08/2020,10868965,"40,057.51",BONSAI FINE ARTS,Additions-Assets Under Construction (Oracle PA Control Account)
FCO,FCO,17/08/2020,10865487,"40,013.33",ISS FACILITY SERVICES LTD FCO OP - POE,Multiple Accounts
FCO,FCO,03/08/2020,10848006,"40,000.00",BUILDING RESEARCH ESTABLISHMENT LTD,Security: Works Non-Residential
FCO,FCO,28/08/2020,10876954,"40,000.00",FCO SERVICES,Additions-Assets Under Construction (Oracle PA Control Account)
FCO,FCO,03/08/2020,10848605,"39,851.24",SCHOOL ,Schooling for Children at Post
FCO,FCO,26/08/2020,10874762,"39,776.63",PINPOINT CORPORATE SERVICES LIMITED,Programme Spend (Oracle Projects Control Account)
FCO,FCO,18/08/2020,10867313,"39,736.54",SHELL NIG CLOSED PENSION FUND ADMIN,Multiple Accounts
FCO,FCO,26/08/2020,10875103,"39,644.10",SCHOOL ,Schooling for Children at Post
FCO,FCO,11/08/2020,10858096,"39,477.00",FCO SERVICES,Additions-Assets Under Construction (Oracle PA Control Account)
FCO,FCO,20/08/2020,10869077,"39,274.58",SCHOOL ,Schooling for Children at Post
FCO,FCO,14/08/2020,10862283,"39,270.00",CAPGEMINI UK PLC,IT/IS Consultancy
FCO,FCO,17/08/2020,10865375,"39,123.67",THE BRITISH COUNCIL,Programme Spend (Oracle Projects Control Account)
FCO,FCO,14/08/2020,10862286,"39,078.91",INSTITUTE OF LINGUISTS EDUCATIONAL TRUST,Language Exams (excl Hays)
FCO,FCO,04/08/2020,10849218,"39,072.17",FCO SERVICES,Construction Project more than 10k
FCO,FCO,24/08/2020,10872079,"38,932.75",ECORYS UK LTD,Programme Spend (Oracle Projects Control Account)
FCO,FCO,13/08/2020,10860761,"38,866.19",THE BRITISH COUNCIL,Programme Spend (Oracle Projects Control Account)
FCO,FCO,11/08/2020,10857896,"38,850.00",DFID DEPT INTERNATIONAL DEVELOPMENT,Programme Spend (Oracle Projects Control Account)
FCO,FCO,19/08/2020,10867509,"38,620.52",ACCOMMODATION PROVIDER,Rental Payments - residential
FCO,FCO,14/08/2020,10861860,"38,613.58",SIREN ASSOCIATES LTD,Programme Spend (Oracle Projects Control Account)
FCO,FCO,17/08/2020,10865374,"38,523.67",THE BRITISH COUNCIL,Programme Spend (Oracle Projects Control Account)
FCO,FCO,26/08/2020,10874707,"38,451.49",THE AIRE CENTRE,Programme Spend (Oracle Projects Control Account)
FCO,FCO,03/08/2020,10848101,"38,340.62",FCO POSTS,Funding Overseas Posts
FCO,FCO,18/08/2020,10866433,"38,340.62",SDK CASHBOX TOP-UP,Inter Account Transfer (Cash in Transit)
FCO,FCO,19/08/2020,10867978,"38,226.65",FCO SERVICES,Additions-Assets Under Construction (Oracle PA Control Account)
FCO,FCO,18/08/2020,10866821,"38,187.26",ACCOMMODATION PROVIDER,Rental Payments - residential
FCO,FCO,26/08/2020,10875063,"38,147.49",TIBIYO LEISURE RESORTS T/A THE ROYAL VILLAS,Rental Payments - residential
FCO,FCO,19/08/2020,10867459,"38,133.32",DISCOVERY MEDICAL AID,Multiple Accounts
FCO,FCO,18/08/2020,10866746,"38,000.00",PRISONERS ABROAD,Specialist Contractors
FCO,FCO,06/08/2020,10852978,"37,710.68",SAUDI CONSOLIDATED ELECTRIC CO,Electricity Non-Residential
FCO,FCO,24/08/2020,10872626,"37,535.44",G4S SECURITY SERVICES UGANDA LTD,Local Guards
FCO,FCO,03/08/2020,10847997,"37,500.00",CABINET OFFICE,Recruitment - Specialist
FCO,FCO,12/08/2020,10859718,"37,260.16",BAE SYSTEMS APPLIED INTELLIGENCE LIMITED,IT Management and Change
FCO,FCO,17/08/2020,10865264,"37,087.82",TRESOR PUBLIC,Multiple Accounts
FCO,FCO,07/08/2020,10853808,"36,926.40",MARSH UK LTD,Insurance Of Personal Effects
FCO,FCO,13/08/2020,10860518,"36,899.70",ACCOMMODATION PROVIDER,Rental Payments - residential
FCO,FCO,10/08/2020,10857125,"36,879.43",ACCOMMODATION PROVIDER,Multiple Accounts
FCO,FCO,19/08/2020,10867526,"36,792.77",Optima Defence and Security Group Ltd,Programme Spend (Oracle Projects Control Account)
FCO,FCO,18/08/2020,10866389,"36,770.00",MERCY CORPS,Programme Spend (Oracle Projects Control Account)
FCO,FCO,17/08/2020,10865112,"36,665.00",AXIOM INTERNATIONAL LTD,Programme Spend (Oracle Projects Control Account)
FCO,FCO,25/08/2020,10873705,"36,586.37",ISS FACILITY SERVICES LTD FCO OP,Multiple Accounts
FCO,FCO,24/08/2020,10872577,"36,534.77",IESCO,Multiple Accounts
FCO,FCO,25/08/2020,10873528,"36,500.00",FCO SERVICES,Additions-Assets Under Construction (Oracle PA Control Account)
FCO,FCO,25/08/2020,10873649,"36,383.23",ISS FACILITY SERVICES LTD FCO OP,Multiple Accounts
FCO,FCO,12/08/2020,10859702,"36,193.54",G4S SECURITY SERVICE DRC SPRL,Local Guards
FCO,FCO,07/08/2020,10854071,"36,085.00",AUGMENTAS GROUP LTD,Programme Spend (Oracle Projects Control Account)
FCdO,FCO,03/08/2020,10848184,"36,000.00",FCO POSTS,Funding Overseas Posts
FCO,FCO,10/08/2020,10856026,"35,961.75",NOIPOLLS LIMITED,Programme Spend (Oracle Projects Control Account)
FCO,FCO,03/08/2020,10848000,"35,894.63",PICKFORDS MOVE MANAGEMENT LTD,Heavy Baggage
FCO,FCO,25/08/2020,10873404,"35,789.74",ALDAR PROPERTIES PJSC,Recharge Suspense Account (Oracle PA Control Account)
FCO,FCO,25/08/2020,10873406,"35,789.74",ALDAR PROPERTIES PJSC,Recharge Suspense Account (Oracle PA Control Account)
FCO,FCO,19/08/2020,10867420,"35,651.64",ALEXANDER FORBES LIFE,Multiple Accounts
FCO,FCO,12/08/2020,10859733,"35,606.29",CABINET OFFICE,UK Based Staff Pay (Oracle PAY Control Account)
FCO,FCO,11/08/2020,10858112,"35,546.70",FCO SERVICES,IT/IS Consultancy
FCO,FCO,25/08/2020,10873684,"35,365.83",ISS FACILITY SERVICES LTD FCO OP,Multiple Accounts
FCO,FCO,07/08/2020,10853974,"35,200.00",AUGMENTAS GROUP LTD,Programme Spend (Oracle Projects Control Account)
FCO,FCO,26/08/2020,10875012,"35,177.51",PILGRIMS AFRICA LTD,Local Guards
FCO,FCO,27/08/2020,10875848,"35,168.26",AFIP,Multiple Accounts
FCO,FCO,18/08/2020,10866253,"35,070.00",NGU FOUNDATION FOR SUPPORT OF REFORMS IN UKRAINE,Recharge Suspense Account (Oracle PA Control Account)
FCO,FCO,03/08/2020,10848114,"35,059.81",FCO POSTS,Funding Overseas Posts
FCO,FCO,03/08/2020,10847944,"35,000.00",FCO SERVICES,Additions-Assets Under Construction (Oracle PA Control Account)
FCO,FCO,11/08/2020,10858262,"35,000.00",BURGES SALMON LLP,Estates Management Services
FCO,FCO,11/08/2020,10858377,"34,973.84",CABINET OFFICE,Multiple Accounts
FCO,FCO,07/08/2020,10853981,"34,966.64",SCHOOL,Multiple Accounts
FCO,FCO,19/08/2020,10867662,"34,639.12",INSTITUTO DE GESTAO FINANCEIRA DA SEGURANCA SOCIAL,Multiple Accounts
FCO,FCO,20/08/2020,10869168,"34,506.56",ACCOMMODATION PROVIDER,Rental Payments - residential
FCO,FCO,19/08/2020,10868245,"34,420.80",ACCOMMODATION PROVIDER,Multiple Accounts
FCO,FCO,03/08/2020,10848196,"34,333.09",FCO POSTS,Funding Overseas Posts
FCO,FCO,28/08/2020,10877113,"34,317.37",PICKFORDS MOVE MANAGEMENT LTD,Heavy Baggage
FCO,FCO,25/08/2020,10874439,"33,816.43",ACCOMMODATION PROVIDER,Rental Payments - residential
FCO,FCO,07/08/2020,10854558,"33,670.63",LUIS EDUARDO CORREA RIBEIRO,Multiple Accounts
FCO,FCO,04/08/2020,10849002,"33,607.60",SOLUTIONS ORIENTED ENTERPRISES,Programme Spend (Oracle Projects Control Account)
FCO,FCO,12/08/2020,10859736,"33,562.50",TORCHLIGHT SOLUTIONS LTD,Programme Spend (Oracle Projects Control Account)
FCO,FCO,25/08/2020,10873550,"33,524.81",AXIOM INTERNATIONAL LTD,Programme Spend (Oracle Projects Control Account)
FCO,FCO,24/08/2020,10872257,"33,457.99",SCHOOL ,Schooling for Children at Post
FCO,FCO,28/08/2020,10877105,"33,454.69",PICKFORDS MOVE MANAGEMENT LTD,Heavy Baggage
FCO,FCO,05/08/2020,10850622,"33,422.45",G4S SECURE SOLUTIONS INT JORDAN,Local Guards
FCO,FCO,05/08/2020,10850572,"33,263.68",CRAFTWORK UPHOLSTERY LIMITED,"Purchase of Furniture, Fittings and Domestic Appliances"
FCO,FCO,12/08/2020,10859887,"33,196.64",MEPITS SOLUTIONS,Programme Spend (Oracle Projects Control Account)
FCO,FCO,20/08/2020,10869036,"33,120.00",COMPUTACENTER UK LTD,End User Software and Hardware
FCO,FCO,25/08/2020,10873539,"33,088.80",HART SECURITY UK LTD,Programme Spend (Oracle Projects Control Account)
FCO,FCO,24/08/2020,10871981,"32,935.61",CENTRAL PROVIDENT FUND BOARD,Multiple Accounts
FCO,FCO,24/08/2020,10871976,"32,917.48",IBTC PENSION MANAGERS LTD,Multiple Accounts
FCO,FCO,18/08/2020,10866752,"32,916.38",GOVERNMENT OF ANGUILLA,Programme Spend (Oracle Projects Control Account)
FCO,FCO,13/08/2020,10860869,"32,852.49",SCHOOL,Multiple Accounts
FCO,FCO,13/08/2020,10860874,"32,852.49",SCHOOL,Multiple Accounts
FCO,FCO,10/08/2020,10857209,"32,724.34",ACCOMMODATION PROVIDER,Rental Payments - residential
FCO,FCO,24/08/2020,10872569,"32,666.43",IESCO,Multiple Accounts
FCO,FCO,03/08/2020,10847908,"32,576.83",ACCOMMODATION PROVIDER,Rental Payments - residential
FCO,FCO,10/08/2020,10857129,"32,576.83",ACCOMMODATION PROVIDER,Multiple Accounts
FCO,FCO,21/08/2020,10869979,"32,514.69",INTERSERVE FM LTD,Multiple Accounts
FCO,FCO,17/08/2020,10865115,"32,374.04",HOME OFFICE,Programme Spend (Oracle Projects Control Account)
FCO,FCO,21/08/2020,10869730,"32,309.79",BAE SYSTEMS APPLIED INTELLIGENCE LIMITED,IT Management and Change
FCO,FCO,21/08/2020,10870389,"32,293.86",HEALTH AUTHORITY OF ANGUILLA,Programme Spend (Oracle Projects Control Account)
FCO,FCO,14/08/2020,10861984,"32,232.81",INSTITUT FOR SECURITY STUDIES,Programme Spend (Oracle Projects Control Account)
FCO,FCO,03/08/2020,10847902,"32,163.26",GOWLING WLG UK LLP,Specialist Contractors
FCO,FCO,24/08/2020,10872367,"32,100.50",SOCIAL INSURANCE ORGANISATION,Multiple Accounts
FCO,FCO,07/08/2020,10854667,"32,095.51",O2 (UK) LIMITED,Multiple Accounts
FCO,FCO,13/08/2020,10860860,"32,015.92",SCHOOL,Multiple Accounts
FCO,FCO,13/08/2020,10860864,"32,015.92",SCHOOL,Multiple Accounts
FCO,FCO,24/08/2020,10871977,"31,992.42",CONTRIBUTORY PROVIDENT FUND,Recharge Suspense Account (Oracle PA Control Account)
FCO,FCO,19/08/2020,10868241,"31,674.10",SECRETARY NDMC NEW DELHI,Multiple Accounts
FCO,FCO,28/08/2020,10876893,"31,622.20",SAUDI REAL ESTATE COMPANY,Multiple Accounts
FCO,FCO,06/08/2020,10852973,"31,511.97",ENECO BELGIUM NV,Multiple Accounts
FCO,FCO,10/08/2020,10856222,"31,500.00",ERNST AND YOUNG LLP,Finance Consultancy
FCO,FCO,18/08/2020,10866815,"31,488.38",ACCOMMODATION PROVIDER,Rental Payments - residential
FCO,FCO,12/08/2020,10860066,"31,399.89",SECRETARY NDMC NEW DELHI,Multiple Accounts
FCO,FCO,19/08/2020,10867564,"31,387.68",INTERNATIONAL CENTRE FOR MIGRATION POLICY DEVELOPMENT,Programme Spend (Oracle Projects Control Account)
FCO,FCO,05/08/2020,10850553,"31,083.16",BAE SYSTEMS APPLIED INTELLIGENCE LIMITED,IT Management and Change
FCO,FCO,27/08/2020,10876098,"30,943.20",ANGELA MARIA SILVARES,Multiple Accounts
FCO,FCO,10/08/2020,10857083,"30,732.86",ACCOMMODATION PROVIDER,Rental Payments - residential
FCO,FCO,03/08/2020,10848066,"30,675.00",COMMONWEALTH SECRETARIAT,Programme Spend (Oracle Projects Control Account)
FCO,FCO,03/08/2020,10848103,"30,672.49",FCO POSTS,Funding Overseas Posts
FCO,FCO,03/08/2020,10848105,"30,672.49",FCO POSTS,Funding Overseas Posts
FCO,FCO,03/08/2020,10848236,"30,672.49",FCO POSTS,Funding Overseas Posts
FCO,FCO,13/08/2020,10860680,"30,672.49",FCO POSTS,Funding Overseas Posts
FCO,FCO,18/08/2020,10866688,"30,619.00",EGYPTIAN CENTER FOR ECONOMIC STUDIES,Programme Spend (Oracle Projects Control Account)
FCO,FCO,13/08/2020,10860734,"30,545.23",FCO POSTS,Funding Overseas Posts
FCO,FCO,14/08/2020,10862317,"30,365.77",ACCOMMODATION PROVIDER,Rental Payments - residential
FCO,FCO,19/08/2020,10867485,"30,244.10",G4S SECURITY SERVICES,Local Guards
FCO,FCO,04/08/2020,10850234,"30,211.48",SCHOOL ,Schooling for Children at Post
FCO,FCO,10/08/2020,10856653,"30,161.44",BRITSOURCE INTERNATIONAL,Multiple Accounts
FCO,FCO,06/08/2020,10852250,"30,065.42",MERITAIN HEALTH,Multiple Accounts
FCO,FCO,04/08/2020,10849444,"30,061.88",ATALIAN SERVEST,Misc Security Payments
FCO,FCO,05/08/2020,10850582,"30,000.00",UNICEF GLOBAL SHARED SERVICE CENTRE,Programme Spend (Oracle Projects Control Account)
FCO,FCO,12/08/2020,10859648,"30,000.00",KAINOS SOFTWARE LTD,IT Hosting
FCO,FCO,25/08/2020,10873492,"30,000.00",HOSTAGE INTERNATIONAL,Human Rights : Assistance Policy
FCO,FCO,28/08/2020,10876967,"30,000.00",FCO SERVICES,Additions-Assets Under Construction (Oracle PA Control Account)
FCO,FCO,24/08/2020,10872713,"29,980.14",SECURITAS SAC,Local Guards
FCO,FCO,28/08/2020,10877027,"29,903.20",PICKFORDS MOVE MANAGEMENT LTD,Heavy Baggage
FCO,FCO,25/08/2020,10873526,"29,798.00",FCO SERVICES,Additions-Assets Under Construction (Oracle PA Control Account)
FCO,FCO,04/08/2020,10849524,"29,722.00",MACE INTERNATIONAL UK LIMITED,Additions-Assets Under Construction (Oracle PA Control Account)
FCO,FCO,21/08/2020,10870393,"29,703.56",Proctor's Construction,Programme Spend (Oracle Projects Control Account)
FCO,FCO,21/08/2020,10869778,"29,508.66",HEALIX INTERNATIONAL LTD,Hospital/Specialist Treatment
FCO,FCO,03/08/2020,10848403,"29,476.15",BRENDAN FOOT MOTORS LTD,Additions-Assets Under Construction (Oracle PA Control Account)
FCO,FCO,06/08/2020,10852257,"29,472.74",EDF ENERGY,Electricity Non-Residential
FCO,FCO,18/08/2020,10866807,"29,445.59",ACCOMMODATION PROVIDER,Rental Payments - residential
FCO,FCO,19/08/2020,10867938,"29,319.50",PROFESSIONAL LANGUAGE SOLUTIONS,Language Tuition: Essential
FCO,FCO,05/08/2020,10851046,"29,270.94",AVARN SECURITY OY,Local Guards
FCO,FCO,26/08/2020,10874895,"29,226.34",ACCOMMODATION PROVIDER,Rental Payments - residential
FCO,FCO,18/08/2020,10866686,"29,081.00",EGYPTIAN CENTER FOR ECONOMIC STUDIES,Programme Spend (Oracle Projects Control Account)
FCO,FCO,21/08/2020,10869965,"28,999.39",INTERSERVE FM LTD,Multiple Accounts
FCO,FCO,26/08/2020,10874845,"28,990.57",HMRC HM REVENUE AND CUSTOMS,Temporary Staff (Admin and Clerical Only)
FCO,FCO,04/08/2020,10849411,"28,973.21",CONSTELLATION NEWENERGY INC,Property Maintenance Overseas Non Residential
FCO,FCO,24/08/2020,10872019,"28,957.00",MOTT MACDONALD LTD,Repairs And Refurbishment: Works Residential
FCO,FCO,10/08/2020,10856102,"28,928.28",CYPRUS INT FINANCIAL SERV ASSOC,Programme Spend (Oracle Projects Control Account)
FCO,FCO,19/08/2020,10867602,"28,747.23",PEPCO,Electricity Non-Residential
FCO,FCO,05/08/2020,10850636,"28,679.99",MINISTRY OF ELECTRICITY AND WATER,Multiple Accounts
FCO,FCO,18/08/2020,10866820,"28,525.42",Q PARK LIMITED,Rental Payments - residential
FCO,FCO,04/08/2020,10849133,"28,468.19",MITEL NETWORKS LTD,IT Networking
FCO,FCO,03/08/2020,10848120,"28,372.06",FCO POSTS,Funding Overseas Posts
FCO,FCO,14/08/2020,10862302,"28,350.00",IOM INTERNATIONAL ORG FOR MIGRATION,Programme Spend (Oracle Projects Control Account)
FCO,FCO,17/08/2020,10866172,"28,299.37",SAFEGUARD ALARMS PVT LTD,Local Guards
FCO,FCO,03/08/2020,10848121,"28,295.38",FCO POSTS,Funding Overseas Posts
FCO,FCO,21/08/2020,10870402,"28,243.00",KPMG FIDUCIAIRE,Rental Payments - residential
FCO,FCO,21/08/2020,10869959,"28,071.85",INTERSERVE FM LTD,Multiple Accounts
FCO,FCO,03/08/2020,10848165,"28,049.58",ICO EAST EUROPE FOUNDATION,Programme Spend (Oracle Projects Control Account)
FCO,FCO,03/08/2020,10847923,"27,919.93",COMPUTACENTER UK LTD,Additions-Assets Under Construction (Oracle PA Control Account)
FCO,FCO,19/08/2020,10867479,"27,905.33",DIRECTION GENERAL DES IMPOTS,Multiple Accounts
FCO,FCO,06/08/2020,10852195,"27,744.94",AETNA,Multiple Accounts
FCO,FCO,21/08/2020,10870097,"27,743.58",INTERSERVE FM LTD,Additions-Assets Under Construction (Oracle PA Control Account)
FCO,FCO,10/08/2020,10856250,"27,687.65",SCHOOL,Multiple Accounts
FCO,FCO,11/08/2020,10858258,"27,618.71",TETRA TECH INTERNATIONAL DEVELOPMENT,Programme Spend (Oracle Projects Control Account)
FCO,FCO,03/08/2020,10847915,"27,570.00",BELLS POWER SERVICES LTD,Additions-Assets Under Construction (Oracle PA Control Account)
FCO,FCO,11/08/2020,10858393,"27,325.57",BRITISH CONSULATE GENERAL JERUSALEM,Multiple Accounts
FCO,FCO,19/08/2020,10867528,"27,316.19",ETIHAD TOWERS FOR REAL ESTATE,Multiple Accounts
FCO,FCO,25/08/2020,10873494,"27,255.00",TMT CONSTRUCTION LTD,Additions-Assets Under Construction (Oracle PA Control Account)
FCO,FCO,10/08/2020,10856103,"27,140.09",AETNA,Multiple Accounts
FCO,FCO,13/08/2020,10860519,"27,132.13",ACCOMMODATION PROVIDER,Rental Payments - residential
FCO,FCO,24/08/2020,10872589,"27,060.43",ALLIANZ,Multiple Accounts
FCO,FCO,18/08/2020,10866734,"27,040.00",COMMONWEALTH ENTERPRISE AND INVESTMENT COUNCIL,Programme Spend (Oracle Projects Control Account)
FCO,FCO,13/08/2020,10860900,"27,030.75",MINIMAL RISK CONSULTANCY LTD,Additions-Assets Under Construction (Oracle PA Control Account)
FCO,FCO,13/08/2020,10860857,"26,973.86",SCHOOL,Multiple Accounts
FCO,FCO,21/08/2020,10870090,"26,943.89",INTERSERVE FM LTD,Construction Project more than 10k
FCO,FCO,03/08/2020,10848124,"26,838.43",FCO POSTS,Funding Overseas Posts
FCO,FCO,06/08/2020,10852654,"26,691.99",EDENRED,Multiple Accounts
FCO,FCO,05/08/2020,10851077,"26,685.07",ACCOMMODATION PROVIDER,Rental Payments - non residential
FCO,FCO,12/08/2020,10859653,"26,680.67",KAINOS SOFTWARE LTD,Additions-Assets Under Construction (Oracle PA Control Account)
FCO,FCO,04/08/2020,10849227,"26,631.66",COMPUTACENTER UK LTD,Additions-Assets Under Construction (Oracle PA Control Account)
FCO,FCO,24/08/2020,10872386,"26,613.78",SCHOOL ,Schooling for Children at Post
FCO,FCO,04/08/2020,10849215,"26,462.67",FCO SERVICES,Construction Project more than 10k
FCO,FCO,04/08/2020,10849566,"26,446.84",SOT 161,Local Guards
FCO,FCO,21/08/2020,10869732,"26,394.96",AXIOM INTERNATIONAL LTD,Programme Spend (Oracle Projects Control Account)
FCO,FCO,17/08/2020,10865109,"26,391.30",COMPUTACENTER UK LTD,End User Software and Hardware
FCO,FCO,04/08/2020,10850229,"26,369.37",SCHOOL ,Schooling for Children at Post
FCO,FCO,04/08/2020,10850242,"26,369.37",SCHOOL ,Schooling for Children at Post
FCO,FCO,14/08/2020,10862297,"26,283.66",WESTMINSTER FOUNDATION FOR DEMOCRACY,Programme Spend (Oracle Projects Control Account)
FCO,FCO,12/08/2020,10859755,"26,227.76",CABINET OFFICE,UK Based Staff Pay (Oracle PAY Control Account)
FCO,FCO,27/08/2020,10875820,"26,201.30",DMS AFRICA,Property Maintenance Overseas Residential
FCO,FCO,24/08/2020,10872022,"26,160.55",AECOM,Additions-Assets Under Construction (Oracle PA Control Account)
FCO,FCO,21/08/2020,10870458,"26,111.25",KPMG FIDUCIAIRE,Multiple Accounts
FCO,FCO,10/08/2020,10857092,"26,100.75",SCHOOL ,Schooling for Children at Post
FCO,FCO,28/08/2020,10877129,"25,992.88",PICKFORDS MOVE MANAGEMENT LTD,Heavy Baggage
FCO,FCO,24/08/2020,10872052,"25,872.82",RAMBOLL UK LTD,Additions-Assets Under Construction (Oracle PA Control Account)
FCO,FCO,13/08/2020,10860588,"25,857.00",RSM RISK ASSURANCE SERVICES LLP,Specialist Contractors
FCO,FCO,03/08/2020,10848088,"25,837.14",FONDATION PANZI RDC,Programme Spend (Oracle Projects Control Account)
FCO,FCO,03/08/2020,10848025,"25,654.24",PICKFORDS MOVE MANAGEMENT LTD,Heavy Baggage
FCO,FCO,27/08/2020,10876433,"25,620.66",FORD GLOBAL CITY,Recharge Suspense Account (Oracle PA Control Account)
FCO,FCO,04/08/2020,10849188,"25,398.56",FCO SERVICES,Office Support Services
FCO,FCO,11/08/2020,10857812,"25,360.38",SPARKLEAN SERVICES NIG LTD,Grounds Maintenance
FCO,FCO,19/08/2020,10868053,"25,341.90",AXA INSURANCE,Multiple Accounts
FCO,FCO,07/08/2020,10853787,"25,320.00",ILKO KUCHERIV DEMOCRATIC INITIATIVES CHARITABLE FOUNDATION,Programme Spend (Oracle Projects Control Account)
FCO,FCO,14/08/2020,10862171,"25,314.28",TOYOTA AUTOTRADE SH P K,Additions-Assets Under Construction (Oracle PA Control Account)
FCO,FCO,27/08/2020,10876328,"25,290.56",SWISSPOWER AG,Exhibitions
FCO,FCO,17/08/2020,10865434,"25,180.50",WYG ENGINEERING LIMITED,Estates Management Services
FCO,FCO,24/08/2020,10872290,"25,118.98",ONE HUNDRED TOWERS,Multiple Accounts
FCO,FCO,24/08/2020,10871974,"25,086.37",MINISTRY OF FINANCE,Multiple Accounts
FCO,FCO,13/08/2020,10860615,"25,051.72",HOTELLINE FOR TOURISTIC INVESTMENT LTD,Catering Services
FCO,FCO,04/08/2020,10849019,"25,018.13",NORTEL SECURITY ZAO OP,Local Guards
FCO,FCO,26/08/2020,10874599,"25,007.61",NORTEL SECURITY ZAO OP,Local Guards
FCO,FCO,21/08/2020,10870408,"25,001.80",KPMG FIDUCIAIRE,Multiple Accounts
FCO,FCO,03/08/2020,10848035,"-26,320.58",COMMONWEALTH SECRETARIAT,Programme Spend (Oracle Projects Control Account)
FCO,FCO,01/08/2020,10821553,"-35,200.00",AUGMENTAS GROUP LTD,Programme Spend (Oracle Projects Control Account)
FCO,FCO,14/08/2020,10862011,"-37,500.00",CABINET OFFICE,Recruitment - Specialist
FCO,FCO,12/08/2020,10859292,"-39,987.53",SLC OTHER DEBTORS,Sterling Transfer Facility Transactions
FCO,FCO,21/08/2020,10870585,"-40,946.50",CABINET OFFICE,Programme Spend (Oracle Projects Control Account)
FCO,FCO,14/08/2020,10862482,"-41,618.07",COB OTHER DEBTORS,Recharge Suspense Account (Oracle PA Control Account)
FCO,FCO,06/08/2020,10851917,"-51,517.49",ETA OTHER DEBTORS,Additions-Assets Under Construction (Oracle PA Control Account)
FCO,FCO,24/08/2020,10872120,"-75,000.00",NORTH HIGHLAND UK LTD,Programme Spend (Oracle Projects Control Account)
FCO,FCO,01/08/2020,10817470,"-77,913.64",ACCOMMODATION PROVIDER,Rental Payments - residential
FCO,FCO,24/08/2020,10872039,"-86,932.00",FCO SERVICES,Additions-Assets Under Construction (Oracle PA Control Account)
FCO,FCO,17/08/2020,10865144,"-202,066.69",ETA OTHER DEBTORS,Additions-Assets Under Construction (Oracle PA Control Account)
FCO,FCO,01/08/2020,10732344,"-291,770.00",FCO POSTS,Funding Overseas Posts
FCO,FCO,28/08/2020,10877013,"-746,053.24",ARB OTHER DEBTORS,Proceeds from Assets held for sale
